bitfinex-derivatives/quotes_SOLF0:USTF0_20260126
["timestamp","ask_amount","ask_price","bid_price","bid_amount"]
[1769414195171,4.14901938,122.92,122.87,4.07668833]
[1769414195974,3.78943983,122.95,122.88,4.07668833]
[1769414196173,6.33484285,122.94,122.88,4.07668833]
[1769414196572,3.78943983,122.93,122.88,4.07668833]
[1769414205086,3.78943983,122.93,122.88,11.40908833]
[1769414205286,6.33484285,122.95,122.89,4.07668833]
[1769414205484,3.78943983,122.95,122.89,4.07668833]
[1769414206085,3.78943983,122.95,122.89,11.40848833]
[1769414206585,3.78943983,122.95,122.89,13.95389135]
[1769414211499,3.78943983,122.95,122.9,4.07668833]
[1769414219096,2.54540302,122.96,122.9,4.07668833]
[1769414219301,11.04489633,122.97,122.92,4.07668833]
[1769414219498,3.71759633,122.97,122.92,4.07668833]
[1769414219699,3.71759633,122.97,122.92,6.62209135]
[1769414221409,3.6958415,122.99,122.94,6.62209135]
[1769414222107,11.01035114,123.01,122.96,4.07668833]
[1769414222309,13.55575416,123.01,122.94,6.62209135]
[1769414222507,6.23055416,123.0,122.94,4.07668833]
[1769414223714,3.68515114,123.0,122.94,4.07668833]
[1769414225806,6.23055416,123.0,122.94,4.07668833]
[1769414226517,3.68515114,123.0,122.95,3.98077781]
[1769414227210,2.54540302,123.01,122.95,3.98077781]
[1769414228217,6.17013452,123.02,122.95,3.98077781]
[1769414228419,6.17013452,123.02,122.96,3.98077781]
[1769414231612,3.6247315,123.02,122.96,6.52618083]
[1769414231916,3.6247315,123.02,122.97,3.98077781]
[1769414234021,6.17013452,123.02,122.97,3.98077781]
[1769414234917,6.09434326,123.0,122.95,3.98077781]
[1769414235218,7.3241,123.03,122.93,3.98077781]
[1769414235219,6.09434326,122.99,122.93,3.98077781]
[1769414235626,2.54540302,122.97,122.93,3.98077781]
[1769414235824,6.09434326,122.98,122.93,3.98077781]
[1769414236419,6.08535243,122.95,122.89,3.98077781]
[1769414236718,2.54540302,122.94,122.89,3.98077781]
[1769414237225,6.08535243,122.95,122.89,3.98077781]
[1769414238120,2.54540302,122.94,122.89,3.98077781]
[1769414241125,6.08535243,122.95,122.89,3.98077781]
[1769414241719,3.53994941,122.95,122.89,3.98077781]
[1769414241910,6.08401185,122.95,122.89,3.98077781]
[1769414243027,2.54406244,122.94,122.89,3.98077781]
[1769414252632,2.54406244,122.93,122.89,3.98077781]
[1769414253329,2.54406244,122.94,122.89,3.98077781]
[1769414254631,6.08401185,122.95,122.89,3.98077781]
[1769414256432,2.54406244,122.94,122.89,3.98077781]
[1769414259143,6.08401185,122.95,122.89,3.98077781]
[1769414259836,2.54406244,122.96,122.9,3.74516977]
[1769414260328,3.342628,122.97,122.92,3.74516977]
[1769414260532,2.54406244,122.97,122.92,3.74516977]
[1769414260736,5.88010585,122.98,122.92,3.74516977]
[1769414261634,5.88010585,122.98,122.92,11.07516977]
[1769414261839,3.33604341,122.98,122.93,6.28923221]
[1769414262039,5.87359688,123.0,122.94,3.74516977]
[1769414262541,2.54406244,122.99,122.94,3.74516977]
[1769414262742,5.86716268,122.97,122.92,3.74516977]
[1769414266445,3.30423766,122.99,122.93,3.74516977]
[1769414266646,5.8483001,122.99,122.93,3.74516977]
[1769414266848,2.54406244,122.98,122.93,3.74516977]
[1769414267041,5.84215646,122.98,122.93,3.74516977]
[1769414267846,5.83608338,122.97,122.91,3.74516977]
[1769414268042,5.83608338,122.97,122.91,11.07556977]
[1769414268439,2.54406244,122.95,122.91,3.74516977]
[1769414270752,5.83608338,122.96,122.91,3.74516977]
[1769414271049,2.54406244,122.95,122.91,3.74516977]
[1769414271547,5.83608338,122.96,122.91,3.74516977]
[1769414271743,5.83608338,122.96,122.89,2.54406244]
[1769414271744,2.54406244,122.94,122.89,3.74516977]
[1769414273237,5.81248065,122.95,122.89,3.74516977]
[1769414277552,13.11177041,122.97,122.9,6.28923221]
[1769414277946,3.23499748,122.96,122.9,6.28923221]
[1769414278141,3.23499748,122.96,122.9,3.74516977]
[1769414280749,5.77905992,122.96,122.9,3.74516977]
[1769414283854,3.20381483,122.95,122.9,3.74516977]
[1769414285945,2.54406244,122.96,122.9,3.74516977]
[1769414286255,13.05566686,122.97,122.9,3.74516977]
[1769414286457,3.18430442,122.96,122.9,3.74516977]
[1769414286652,5.72836686,122.96,122.9,3.74516977]
[1769414290361,3.16536502,122.95,122.9,3.74516977]
[1769414295067,3.14288893,122.94,122.88,3.54635468]
[1769414295263,5.68695137,122.94,122.88,3.54635468]
[1769414295460,3.14288893,122.94,122.88,3.54635468]
[1769414296056,5.68260986,122.96,122.89,3.54635468]
[1769414296260,3.13854742,122.95,122.89,3.54635468]
[1769414299069,5.68260986,122.95,122.89,3.54635468]
[1769414299470,3.12280875,122.94,122.89,3.54635468]
[1769414303272,3.10669519,122.93,122.87,3.64746721]
[1769414303472,3.10669519,122.92,122.87,3.64746721]
[1769414304871,5.64321742,122.91,122.86,313.27181638]
[1769414305366,3.09891337,122.91,122.86,316.91928359]
[1769414305566,5.64321742,122.91,122.86,316.91928359]
[1769414317387,3.09891337,122.91,122.86,316.91928359]
[1769414319586,5.64321742,122.91,122.86,316.91928359]
[1769414320293,3.09891337,122.91,122.86,316.91928359]
[1769414320793,5.64321742,122.91,122.86,3.64746721]
[1769414321288,3.09891337,122.91,122.86,3.64746721]
[1769414322095,12.97421742,122.91,122.86,3.64746721]
[1769414322296,3.0356452,122.9,122.86,3.64746721]
[1769414322592,5.57994925,122.9,122.86,3.64746721]
[1769414323391,5.57994925,122.9,122.83,2.54430405]
[1769414323594,3.03257385,122.89,122.84,3.4252207]
[1769414327993,5.5768779,122.89,122.84,3.4252207]
[1769414329095,2.54430405,122.87,122.82,3.4252207]
[1769414329293,5.55917663,122.87,122.82,3.4252207]
[1769414331903,5.55077561,122.86,122.8,3.4252207]
[1769414332403,2.54430405,122.85,122.8,3.4252207]
[1769414332597,3.00647156,122.86,122.8,5.96952475]
[1769414334402,3.00647156,122.86,122.82,2.54430405]
[1769414334602,0.3248267,122.86,122.82,2.54430405]
[1769414335306,7.3324,122.89,122.84,6.08250723]
[1769414336304,7.3324,122.89,122.84,2.54430405]
[1769414336507,0.31406879,122.88,122.83,2.54430405]
[1769414337508,0.31406879,122.88,122.83,6.08250723]
[1769414341211,0.30093409,122.9,122.85,2.54430405]
[1769414341517,0.30093409,122.9,122.85,6.08250723]
[1769414342518,0.30093409,122.9,122.85,3.53820318]
[1769414343109,0.29608525,122.89,122.83,6.08250723]
[1769414343621,0.29608525,122.89,122.84,3.53820318]
[1769414346012,0.29608525,122.89,122.84,6.08250723]
[1769414346420,10.16032073,122.91,122.84,6.08250723]
[1769414346714,10.16032073,122.91,122.85,3.59723234]
[1769414347223,0.28254214,122.9,122.85,3.59723234]
[1769414347619,2.82684619,122.9,122.85,3.59723234]
[1769414347820,0.28029372,122.89,122.83,6.14153639]
[1769414348512,0.28029372,122.89,122.84,3.59723234]
[1769414349923,2.82017812,122.88,122.82,3.59723234]
[1769414351022,9.87650405,122.89,122.83,3.59723234]
[1769414351622,10.15020629,122.89,122.83,3.59723234]
[1769414358835,7.3327,122.88,122.83,3.59723234]
[1769414361839,7.58131413,122.88,122.83,3.59723234]
[1769414374840,0.22401341,122.87,122.83,3.59723234]
[1769414375046,0.22401341,122.87,122.81,6.10412612]
[1769414375436,0.22401341,122.87,122.81,3.55710354]
[1769414375637,2.77103599,122.87,122.81,3.55710354]
[1769414379046,0.21776368,122.86,122.81,3.55710354]
[1769414379248,2.54702258,122.86,122.81,3.55710354]
[1769414380047,10.09828626,122.87,122.81,3.55710354]
[1769414384948,2.75593684,122.86,122.81,3.55710354]
[1769414385345,0.20891426,122.85,122.79,6.10412612]
[1769414385545,2.75593684,122.85,122.79,3.55710354]
[1769414385846,2.75593684,122.85,122.8,3.55710354]
[1769414386052,0.20891426,122.85,122.8,3.55710354]
[1769414388945,2.75593684,122.85,122.8,3.55710354]
[1769414389648,0.20891426,122.85,122.8,3.55710354]
[1769414391050,7.3328,122.88,122.8,3.55710354]
[1769414391249,12.62750261,122.88,122.83,3.55710354]
[1769414391448,9.87982258,122.88,122.83,3.55710354]
[1769414391653,7.3328,122.88,122.83,3.55710354]
[1769414392945,7.3328,122.88,122.83,6.10412612]
[1769414393355,2.74635869,122.89,122.84,6.00032694]
[1769414393545,7.3316,122.9,122.85,6.00032694]
[1769414394358,10.07386227,122.9,122.85,6.00032694]
[1769414397161,10.06912067,122.92,122.86,6.00032694]
[1769414397659,12.61614325,122.92,122.86,3.45330436]
[1769414398154,10.06912067,122.92,122.86,6.00032694]
[1769414398851,10.06912067,122.92,122.87,2.54702258]
[1769414400358,10.06430652,122.94,122.87,3.45330436]
[1769414401251,10.06352937,122.93,122.87,3.45330436]
[1769414402159,7.3298,122.93,122.87,3.45330436]
[1769414403453,10.06121548,122.93,122.87,3.45330436]
[1769414404661,2.73027843,122.91,122.84,3.45330436]
[1769414405562,2.73027843,122.91,122.78,3.41123624]
[1769414406061,2.73235808,122.89,122.8,3.41123624]
[1769414407262,2.73235808,122.89,122.81,3.41123624]
[1769414407467,7.3316,122.9,122.81,3.41123624]
[1769414408363,7.3316,122.9,122.82,3.41123624]
[1769414408568,2.73127157,122.91,122.82,3.41123624]
[1769414409369,10.06227157,122.91,122.83,3.41123624]
[1769414411659,2.73127157,122.91,122.84,3.41123624]
[1769414411868,10.05602336,122.93,122.84,3.41123624]
[1769414412262,10.05642336,122.92,122.84,3.41123624]
[1769414415368,2.72602336,122.92,122.84,3.41123624]
[1769414416172,2.72602336,122.92,122.85,3.41123624]
[1769414418372,2.72602336,122.92,122.86,3.34650546]
[1769414431386,2.70485935,122.94,122.86,3.34650546]
[1769414432087,2.70485935,122.94,122.87,3.34650546]
[1769414437689,7.3287,122.95,122.87,3.34650546]
[1769414437894,10.02779067,122.95,122.87,3.34650546]
[1769414438084,2.69909067,122.94,122.87,3.34650546]
[1769414439497,10.02829067,122.94,122.87,3.34650546]
[1769414440399,2.69763244,122.92,122.85,3.49174532]
[1769414447501,2.69278596,122.91,122.85,3.49174532]
[1769414448201,10.02378596,122.91,122.85,3.49174532]
[1769414448494,2.69212504,122.9,122.81,3.49174532]
[1769414449393,2.69147172,122.88,122.81,3.49174532]
[1769414449695,2.69147172,122.88,122.8,316.18827809]
[1769414450894,2.69018751,122.86,122.74,3.49174532]
[1769414451891,2.69018751,122.86,122.73,114.1944]
[1769414451892,2.68955644,122.85,122.76,3.49174532]
[1769414453298,10.02415644,122.85,122.76,3.49174532]
[1769414457101,2.68955644,122.85,122.77,3.49174532]
[1769414457307,10.02000818,122.87,122.77,3.49174532]
[1769414457509,2.68650818,122.89,122.78,3.49174532]
[1769414458609,2.68591937,122.88,122.8,3.49174532]
[1769414459010,2.68533733,122.87,122.8,3.49174532]
[1769414459903,10.01893733,122.87,122.8,3.49174532]
[1769414460209,2.68533733,122.87,122.8,3.49174532]
[1769414461915,2.68363101,122.86,122.78,3.49174532]
[1769414462305,2.68363101,122.85,122.78,3.49174532]
[1769414462509,2.68363101,122.87,122.78,3.49174532]
[1769414462713,2.68363101,122.87,122.79,3.49174532]
[1769414463011,2.68363101,122.87,122.81,3.49174532]
[1769414464005,2.68363101,122.87,122.78,114.1538]
[1769414464006,2.68363101,122.87,122.79,3.49174532]
[1769414464810,2.68201642,122.86,122.79,3.49174532]
[1769414468015,2.68044252,122.85,122.79,3.49174532]
[1769414470216,2.67942316,122.84,122.75,3.50283027]
[1769414471218,2.67942316,122.84,122.76,3.50283027]
[1769414472002,2.67842708,122.83,122.76,3.50283027]
[1769414472201,114.0861,122.86,122.76,3.50283027]
[1769414472202,2.67842708,122.86,122.76,3.50283027]
[1769414473918,2.67745375,122.85,122.78,3.50283027]
[1769414475010,2.67697545,122.84,122.76,3.50283027]
[1769414475917,2.67650265,122.83,122.76,3.50283027]
[1769414476312,2.67650265,122.85,122.76,3.50283027]
[1769414476615,2.67650265,122.85,122.78,3.50283027]
[1769414479817,2.67650265,122.85,122.79,3.46614943]
[1769414480716,2.67554656,122.87,122.79,3.46614943]
[1769414480912,2.67554656,122.87,122.8,3.46614943]
[1769414481917,2.67554656,122.87,122.81,2.54740336]
[1769414484013,2.67554656,122.87,122.81,6.01355279]
[1769414485624,2.67554656,122.87,122.81,3.46614943]
[1769414485918,2.67554656,122.87,122.81,6.01361158]
[1769414486314,2.67554656,122.87,122.75,134.34511084]
[1769414486315,2.67341518,122.86,122.79,6.01361158]
[1769414487214,10.00741518,122.86,122.79,6.01361158]
[1769414487414,10.00741518,122.86,122.8,6.01361158]
[1769414489115,10.00741518,122.86,122.81,6.01361158]
[1769414490619,7.334,122.86,122.82,3.46614943]
[1769414490822,7.334,122.86,122.82,6.01361158]
[1769414493524,7.334,122.86,122.82,1.158e-05]
[1769414494832,7.3345,122.85,122.82,1.158e-05]
[1769414495630,7.3345,122.85,122.81,6.161e-05]
[1769414495835,7.3345,122.85,122.82,6.215e-05]
[1769414496925,117.66631949,122.87,122.81,8.591e-05]
[1769414496926,7.3352,122.84,122.81,8.591e-05]
[1769414497134,7.3352,122.84,122.8,2.54746215]
[1769414497732,10.92721949,122.84,122.79,2.54746215]
[1769414497929,7.3352,122.84,122.79,2.54746215]
[1769414498930,7.3352,122.84,122.79,5.85935003]
[1769414499128,7.3357,122.83,122.79,8.788e-05]
[1769414499428,10.92771949,122.83,122.78,2.54746215]
[1769414500633,10.92771949,122.83,122.77,2.54746215]
[1769414501032,13.47518164,122.83,122.76,22.71157299]
[1769414501226,13.47518164,122.83,122.77,1.64608388]
[1769414501528,7.3357,122.83,122.77,1.64608388]
[1769414501830,7.3357,122.83,122.79,1.64608388]
[1769414508241,9.88316215,122.83,122.79,1.64608388]
[1769414508740,3.59201949,122.84,122.79,1.64608388]
[1769414509442,13.47458164,122.84,122.79,1.64608388]
[1769414509942,7.3341,122.86,122.81,1.66608778]
[1769414511045,10.92611949,122.86,122.81,1.66608778]
[1769414512442,13.47358164,122.86,122.81,1.66608778]
[1769414514154,10.92611949,122.86,122.81,1.66608778]
[1769414515355,2.54746215,122.85,122.79,1.67467437]
[1769414516356,2.54746215,122.84,122.79,1.67467437]
[1769414517658,5.98003744,122.85,122.79,1.67467437]
[1769414519358,5.98003744,122.85,122.79,4.22213652]
[1769414520458,13.31453744,122.85,122.79,4.22213652]
[1769414520657,13.31453744,122.85,122.79,1.67467437]
[1769414521451,3.43257529,122.83,122.78,20.16411084]
[1769414521651,2.54746215,122.82,122.77,21.85060085]
[1769414521852,5.98003744,122.83,122.77,1.68649001]
[1769414522558,2.54746215,122.82,122.77,1.68649001]
[1769414522754,13.31483744,122.85,122.79,1.69018931]
[1769414523059,13.31483744,122.85,122.79,21.85430015]
[1769414524154,10.76737529,122.85,122.8,1.69204939]
[1769414524853,2.54746215,122.84,122.8,1.69204939]
[1769414525254,114.0762,122.87,122.78,1.69919048]
[1769414525255,2.54746215,122.82,122.78,1.69919048]
[1769414525652,2.54746215,122.82,122.77,20.16411084]
[1769414526251,2.54746215,122.8,122.76,21.86330132]
[1769414526458,2.54746215,122.8,122.76,1.69919048]
[1769414527256,6.06836885,122.81,122.76,1.69919048]
[1769414527458,7.3364,122.82,122.76,1.69919048]
[1769414527459,2.54746215,122.82,122.76,1.69919048]
[1769414527752,2.54746215,122.82,122.77,1.702619]
[1769414529556,6.06836885,122.83,122.77,21.86672984]
[1769414530863,2.54746215,122.82,122.77,21.86672984]
[1769414531062,6.06836885,122.83,122.77,21.86672984]
[1769414534566,7.3354,122.84,122.75,21.87821751]
[1769414534567,2.54746215,122.8,122.75,21.87821751]
[1769414534770,0.43435552,122.8,122.77,20.16411084]
[1769414536659,3.5209067,122.81,122.77,20.16411084]
[1769414536660,6.06836885,122.81,122.77,20.16411084]
[1769414538068,2.54746215,122.8,122.77,20.16411084]
[1769414538659,2.54746215,122.8,122.76,20.16411084]
[1769414539166,6.06836885,122.81,122.76,20.16411084]
[1769414540665,2.54746215,122.8,122.76,20.16411084]
[1769414544770,0.43876797,122.8,122.76,20.16411084]
[1769414545772,0.43876797,122.8,122.75,21.87821751]
[1769414546273,9.88436215,122.81,122.76,21.89582172]
[1769414546766,7.3369,122.81,122.76,21.89582172]
[1769414547568,9.88636029,122.81,122.76,21.89582172]
[1769414549873,7.3369,122.81,122.76,21.89582172]
[1769414552578,9.88636029,122.81,122.76,21.89582172]
[1769414553374,2.54946029,122.8,122.76,21.89582172]
[1769414553575,7.3369,122.81,122.76,1.74095937]
[1769414553576,2.54946029,122.81,122.76,1.74095937]
[1769414554270,6.08129386,122.82,122.76,1.74095937]
[1769414555075,13.41759386,122.82,122.76,1.74095937]
[1769414555776,2.54946029,122.81,122.76,1.74095937]
[1769414556178,2.54946029,122.81,122.76,21.90507021]
[1769414558977,13.41759386,122.82,122.76,21.90507021]
[1769414560181,2.54946029,122.81,122.77,20.16411084]
[1769414562188,0.42271218,122.81,122.77,20.16411084]
[1769414564287,13.41759386,122.82,122.77,20.16411084]
[1769414564782,6.17637598,122.81,122.77,20.16411084]
[1769414572092,1.03486127,122.81,122.77,20.16411084]
[1769414574794,1.03486127,122.81,122.78,3.41381359]
[1769414574999,3.62691569,122.86,122.81,3.41381359]
[1769414575196,3.62691569,122.88,122.82,3.41381359]
[1769414575395,2.54946029,122.87,122.82,23.57792443]
[1769414575600,6.17637598,122.88,122.82,23.57792443]
[1769414575802,13.50937598,122.88,122.82,23.57792443]
[1769414575997,13.50937598,122.88,122.83,20.16411084]
[1769414576197,2.54946029,122.87,122.82,23.57792443]
[1769414579106,2.54946029,122.87,122.82,3.41381359]
[1769414579304,13.50937598,122.88,122.82,3.41381359]
[1769414581100,6.24439861,122.87,122.82,3.41381359]
[1769414581309,3.69493832,122.87,122.82,3.41381359]
[1769414581604,3.69493832,122.9,122.85,3.57027571]
[1769414581805,6.24439861,122.92,122.86,3.57027571]
[1769414582499,2.54946029,122.91,122.86,3.57027571]
[1769414582704,6.24439861,122.92,122.86,3.57027571]
[1769414582905,13.57499861,122.92,122.86,3.57027571]
[1769414584801,13.36809953,122.91,122.86,3.57027571]
[1769414584997,2.54946029,122.9,122.86,3.57027571]
[1769414585298,13.36809953,122.91,122.86,3.57027571]
[1769414587008,13.36809953,122.91,122.86,18.64152613]
[1769414588209,13.36809953,122.91,122.86,3.57027571]
[1769414591215,2.54946029,122.9,122.86,3.57027571]
[1769414593910,13.36809953,122.91,122.86,3.57027571]
[1769414594710,2.54946029,122.92,122.86,3.57027571]
[1769414594917,13.36699953,122.93,122.87,3.51186552]
[1769414595102,13.36699953,122.93,122.85,15.07125042]
[1769414595103,120.06339953,122.92,122.85,15.07125042]
[1769414595412,2.54946029,122.9,122.83,17.62071071]
[1769414595801,2.54946029,122.89,122.83,15.07125042]
[1769414596814,2.54946029,122.88,122.83,15.07125042]
[1769414597015,2.54946029,122.88,122.82,17.62071071]
[1769414597207,2.54946029,122.88,122.83,1.14195097]
[1769414597410,2.54946029,122.87,122.83,1.14195097]
[1769414597806,2.54946029,122.87,122.83,5.097e-05]
[1769414598108,9.88296029,122.87,122.81,15.07125042]
[1769414598313,6.36053532,122.88,122.81,17.62071071]
[1769414598507,13.69323532,122.88,122.81,15.07125042]
[1769414598713,2.54946029,122.87,122.81,15.07125042]
[1769414598912,13.69323532,122.88,122.81,15.07125042]
[1769414599612,2.54946029,122.87,122.81,15.07125042]
[1769414600014,2.54946029,122.87,122.82,0.05359563]
[1769414600718,11.14277503,122.9,122.82,0.05359563]
[1769414601022,128.6627,122.95,122.86,0.07194827]
[1769414601023,6.36053532,122.92,122.86,0.07194827]
[1769414602918,13.69103532,122.92,122.86,0.07194827]
[1769414604414,6.36053532,122.92,122.86,0.07194827]
[1769414604815,3.81107503,122.92,122.87,0.14326932]
[1769414606223,6.36053532,122.92,122.87,0.14326932]
[1769414607623,3.81107503,122.92,122.87,0.14326932]
[1769414608312,3.81107503,122.92,122.87,15.21451974]
[1769414610424,6.35583669,122.92,122.87,15.21451974]
[1769414612223,3.81107503,122.92,122.87,15.21451974]
[1769414612525,3.81107503,122.92,122.88,15.07125042]
[1769414613328,2.54476166,122.91,122.88,1.91735042]
[1769414613521,2.54476166,122.91,122.87,0.14326932]
[1769414614027,2.54476166,122.9,122.85,0.3282109]
[1769414615321,3.81107503,122.91,122.85,0.3282109]
[1769414615322,6.35583669,122.91,122.85,0.3282109]
[1769414620532,2.54476166,122.9,122.85,0.3282109]
[1769414626437,2.54476166,122.9,122.85,20.49232174]
[1769414628743,6.35583669,122.9,122.85,20.49232174]
[1769414630645,3.81107503,122.9,122.85,20.49232174]
[1769414630844,3.81107503,122.9,122.85,23.0370834]
[1769414631643,2.54476166,122.91,122.86,0.61067188]
[1769414631845,114.0053,122.95,122.86,0.61067188]
[1769414631846,6.35583669,122.95,122.89,0.62258098]
[1769414632042,3.81107503,122.95,122.9,0.62258098]
[1769414632344,2.54476166,122.93,122.89,20.16411084]
[1769414632537,3.81107503,122.91,122.87,20.16411084]
[1769414632742,6.35583669,122.91,122.86,0.62258098]
[1769414633147,3.81107503,122.91,122.86,0.62258098]
[1769414633345,6.35583669,122.91,122.86,0.62258098]
[1769414638145,2.54476166,122.9,122.86,0.62258098]
[1769414638447,6.35583669,122.9,122.85,20.16411084]
[1769414638642,6.35583669,122.89,122.84,20.85570349]
[1769414639235,3.81107503,122.89,122.84,20.85570349]
[1769414640045,2.54476166,122.9,122.85,0.71358837]
[1769414640350,3.81107503,122.91,122.86,0.71358837]
[1769414641646,6.35583669,122.91,122.86,0.71358837]
[1769414641852,3.81107503,122.89,122.85,20.16411084]
[1769414642051,3.81107503,122.88,122.83,20.16411084]
[1769414642251,0.72344188,122.88,122.83,20.16411084]
[1769414642446,0.72344188,122.88,122.84,20.16411084]
[1769414644045,9.87586166,122.91,122.85,24.02165467]
[1769414644246,6.22526684,122.91,122.85,24.02165467]
[1769414645148,3.92733481,122.89,122.85,20.16411084]
[1769414645351,6.47209647,122.89,122.85,20.16411084]
[1769414645654,6.47209647,122.88,122.83,20.16411084]
[1769414646352,6.47209647,122.88,122.84,20.16411084]
[1769414646552,3.92733481,122.87,122.83,20.16411084]
[1769414646741,6.47209647,122.85,122.82,7.74381084]
[1769414646948,6.47209647,122.85,122.78,31.57217986]
[1769414647151,6.47209647,122.84,122.78,29.0274182]
[1769414647453,114.066,122.88,122.77,2.54476166]
[1769414647454,3.92733481,122.83,122.77,3.82227965]
[1769414647757,3.92733481,122.83,122.77,6.36704131]
[1769414647954,3.92733481,122.83,122.77,3.82227965]
[1769414648257,2.54476166,122.85,122.79,3.82227965]
[1769414648447,6.47209647,122.86,122.79,6.36704131]
[1769414649648,3.92733481,122.85,122.79,6.36704131]
[1769414649856,6.47209647,122.87,122.81,3.82227965]
[1769414650653,3.92733481,122.86,122.81,3.82227965]
[1769414655567,3.92733481,122.85,122.79,11.16007965]
[1769414655864,3.92733481,122.84,122.79,11.16007965]
[1769414662369,6.48155207,122.86,122.8,4.03211372]
[1769414662562,3.93679041,122.86,122.8,6.57687538]
[1769414662757,3.93679041,122.86,122.8,13.91407538]
[1769414663363,3.93679041,122.86,122.81,13.92054746]
[1769414663764,3.93679041,122.88,122.82,13.92689308]
[1769414663964,3.93679041,122.88,122.83,4.04613142]
[1769414664374,3.93679041,122.88,122.83,6.59089308]
[1769414664665,3.93679041,122.88,122.83,13.92629308]
[1769414664870,6.48155207,122.9,122.84,4.05299445]
[1769414665962,6.48155207,122.9,122.84,11.38779445]
[1769414666372,3.93679041,122.9,122.84,11.38779445]
[1769414667267,3.93679041,122.9,122.84,13.93255611]
[1769414668570,6.66536151,122.92,122.86,4.04642816]
[1769414668771,6.66536151,122.92,122.85,9.87886166]
[1769414668772,4.12059985,122.92,122.87,6.59118982]
[1769414669970,4.12059985,122.92,122.87,13.92408982]
[1769414670874,4.12059985,122.94,122.88,6.59118982]
[1769414671371,2.54476166,122.96,122.89,6.51802809]
[1769414671575,4.24020003,123.03,122.92,3.97326643]
[1769414671869,4.24020003,122.99,122.93,3.91509893]
[1769414672072,2.54125773,122.97,122.91,3.91509893]
[1769414672375,6.78145776,122.95,122.89,3.91509893]
[1769414672570,6.78145776,122.94,122.87,33.98929331]
[1769414672875,6.78145776,122.94,122.87,13.78935666]
[1769414673077,4.24020003,122.94,122.87,13.78935666]
[1769414673268,4.24020003,122.94,122.88,3.91509893]
[1769414673468,6.78145776,122.94,122.88,3.91509893]
[1769414673676,4.24020003,122.94,122.88,6.45635666]
[1769414673874,7.3271,122.98,122.88,6.45635666]
[1769414673875,4.24020003,122.98,122.91,6.45635666]
[1769414674072,4.24020003,122.98,122.91,3.91509893]
[1769414674271,6.78145776,122.98,122.91,6.45635666]
[1769414674472,2.54125773,122.97,122.91,3.91509893]
[1769414674873,4.24020003,122.98,122.92,6.53995924]
[1769414675077,4.24020003,122.98,122.93,2.54125773]
[1769414676280,4.1610476,122.97,122.91,2.54125773]
[1769414676583,4.1610476,122.97,122.91,6.53995924]
[1769414676783,4.1610476,122.97,122.92,2.54125773]
[1769414676981,4.1610476,122.97,122.91,6.53995924]
[1769414677480,4.1610476,122.99,122.92,6.53995924]
[1769414677683,4.1610476,122.98,122.92,6.53995924]
[1769414678579,6.70230533,123.0,122.93,6.53995924]
[1769414678780,4.1610476,123.0,122.94,2.54125773]
[1769414680287,4.1610476,123.0,122.93,6.53995924]
[1769414680485,6.70230533,123.0,122.93,6.53995924]
[1769414680681,4.1610476,122.98,122.92,6.53995924]
[1769414680883,6.70230533,123.0,122.93,6.53995924]
[1769414681381,6.70230533,123.0,122.9,114.0418]
[1769414681382,4.1610476,123.0,122.94,6.53995924]
[1769414682384,6.70230533,123.0,122.94,3.99870151]
[1769414682883,6.70230533,122.99,122.92,11.32850151]
[1769414683078,6.70230533,122.99,122.92,13.86975924]
[1769414683478,4.1610476,122.98,122.92,6.53995924]
[1769414683679,6.70230533,122.97,122.9,3.99870151]
[1769414683885,6.70230533,122.97,122.9,6.53995924]
[1769414684689,4.1610476,122.97,122.91,3.99870151]
[1769414684889,4.1610476,122.97,122.91,6.53995924]
[1769414685183,4.1610476,122.96,122.9,2.54125773]
[1769414685381,4.1610476,122.96,122.89,13.87135924]
[1769414685686,6.70230533,122.94,122.87,13.87295924]
[1769414685886,4.1610476,122.93,122.84,3.99870151]
[1769414686085,6.70230533,122.92,122.85,13.87425924]
[1769414686484,4.1610476,122.9,122.83,6.53995924]
[1769414686784,4.1610476,122.9,122.83,3.99870151]
[1769414686785,2.54125773,122.89,122.83,3.99870151]
[1769414687288,6.70230533,122.9,122.83,3.99870151]
[1769414687790,2.54125773,122.89,122.83,3.99870151]
[1769414688487,4.1610476,122.93,122.85,3.99870151]
[1769414688687,4.1610476,122.93,122.86,3.99870151]
[1769414688885,6.70230533,122.93,122.86,6.53995924]
[1769414689387,6.70230533,122.92,122.86,3.99870151]
[1769414689582,6.70230533,122.91,122.84,6.53995924]
[1769414690180,4.1610476,122.91,122.85,2.54125773]
[1769414690693,2.54125773,122.92,122.85,6.53995924]
[1769414690992,6.70230533,122.91,122.84,11.33320151]
[1769414691293,6.70230533,122.93,122.86,2.54125773]
[1769414691783,6.70230533,122.93,122.86,6.53995924]
[1769414691987,4.1610476,122.93,122.87,6.53995924]
[1769414692694,4.1610476,122.93,122.88,2.54125773]
[1769414693796,4.1610476,122.93,122.87,6.53995924]
[1769414694898,2.54125773,122.94,122.88,3.99870151]
[1769414695498,6.70230533,122.94,122.87,2.54125773]
[1769414695697,6.70230533,122.92,122.85,2.54125773]
[1769414695990,6.70230533,122.91,122.84,13.87455924]
[1769414696195,4.1610476,122.89,122.82,13.87585924]
[1769414696397,6.70230533,122.89,122.82,13.87585924]
[1769414696593,2.54125773,122.88,122.82,3.99870151]
[1769414696794,2.54125773,122.87,122.8,6.53995924]